[Event "Titled Tuesday Blitz November 14 Early 2023"]
[White "Javakhadze, Zurab"]
[Black "Oparin, Grigoriy"]
[WhiteFideId "13603647"]
[BlackFideId "24125890"]
[WhiteElo "2790"]
[BlackElo "2999"]
[Result "1/2-1/2"]
[Round "10"]
[TimeControl "180+1"]
[Date "2023.11.14"]
[WhiteClock "0:00:06"]
[BlackClock "0:00:06"]
[Board "11"]

1. Nf3 {[%clk 0:02:53]}  Nf6 {[%clk 0:02:58]} 2. g3 {[%clk 0:02:52]}  b6 {[%clk 0:02:58]} 3. Bg2 {[%clk 0:02:52]}  Bb7 {[%clk 0:02:59]} 4. O-O {[%clk 0:02:53]}  c5 {[%clk 0:02:59]} 5. c4 {[%clk 0:02:47]}  g6 {[%clk 0:02:59]} 6. b3 {[%clk 0:02:47]}  Bg7 {[%clk 0:02:59]} 7. Bb2 {[%clk 0:02:48]}  O-O {[%clk 0:02:59]} 8. e3 {[%clk 0:02:38]}  e6 {[%clk 0:02:57]} 9. d4 {[%clk 0:02:36]}  Qe7 {[%clk 0:02:56]} 10. Nc3 {[%clk 0:02:35]}  d6 {[%clk 0:02:56]} 11. Qc2 {[%clk 0:02:26]}  Nc6 {[%clk 0:02:55]} 12. Rad1 {[%clk 0:02:21]}  Rac8 {[%clk 0:02:55]} 13. a3 {[%clk 0:02:07]}  Rfd8 {[%clk 0:02:51]} 14. d5 {[%clk 0:02:03]}  exd5 {[%clk 0:02:49]} 15. cxd5 {[%clk 0:02:02]}  Nb4 {[%clk 0:02:46]} 16. axb4 {[%clk 0:01:17]}  cxb4 {[%clk 0:02:47]} 17. Qd3 {[%clk 0:01:17]}  bxc3 {[%clk 0:02:41]} 18. Bxc3 {[%clk 0:01:18]}  Nxd5 {[%clk 0:02:29]} 19. Bxg7 {[%clk 0:01:17]}  Kxg7 {[%clk 0:02:30]} 20. Nd4 {[%clk 0:01:12]}  Nb4 {[%clk 0:02:19]} 21. Qb5 {[%clk 0:01:09]}  Bxg2 {[%clk 0:02:15]} 22. Kxg2 {[%clk 0:01:09]}  d5 {[%clk 0:02:15]} 23. Rc1 {[%clk 0:01:01]}  Qe4+ {[%clk 0:02:07]} 24. Kg1 {[%clk 0:01:00]}  Nd3 {[%clk 0:02:07]} 25. Rxc8 {[%clk 0:00:56]}  Rxc8 {[%clk 0:02:08]} 26. Qd7 {[%clk 0:00:52]}  Rc1 {[%clk 0:01:44]} 27. Rxc1 {[%clk 0:00:45]}  Nxc1 {[%clk 0:01:45]} 28. Qxa7 {[%clk 0:00:41]}  Nxb3 {[%clk 0:01:45]} 29. Qxb6 {[%clk 0:00:31]}  Nxd4 {[%clk 0:01:42]} 30. Qxd4+ {[%clk 0:00:30]}  Qxd4 {[%clk 0:01:39]} 31. exd4 {[%clk 0:00:31]}  Kf6 {[%clk 0:01:28]} 32. Kg2 {[%clk 0:00:20]}  Ke6 {[%clk 0:01:17]} 33. Kf3 {[%clk 0:00:20]}  Kd6 {[%clk 0:01:17]} 34. Kf4 {[%clk 0:00:20]}  f6 {[%clk 0:01:17]} 35. h4 {[%clk 0:00:21]}  Kc6 {[%clk 0:00:50]} 36. g4 {[%clk 0:00:21]}  Kd6 {[%clk 0:00:40]} 37. Ke3 {[%clk 0:00:13]}  Kd7 {[%clk 0:00:40]} 38. Kf4 {[%clk 0:00:10]}  Ke6 {[%clk 0:00:38]} 39. Ke3 {[%clk 0:00:08]}  Kd6 {[%clk 0:00:36]} 40. Kf4 {[%clk 0:00:06]}  Kd7 {[%clk 0:00:36]} 41. Ke3 {[%clk 0:00:06]}  h6 {[%clk 0:00:21]} 42. Kf4 {[%clk 0:00:03]}  Kd6 {[%clk 0:00:17]} 43. g5 {[%clk 0:00:03]}  fxg5+ {[%clk 0:00:17]} 44. hxg5 {[%clk 0:00:02]}  h5 {[%clk 0:00:17]} 45. Ke3 {[%clk 0:00:01]}  Ke7 {[%clk 0:00:16]} 46. Kf3 {[%clk 0:00:01]}  Kd7 {[%clk 0:00:16]} 47. Kg3 {[%clk 0:00:01]}  Kd6 {[%clk 0:00:14]} 48. Kf3 {[%clk 0:00:01]}  Kc6 {[%clk 0:00:13]} 49. Kg3 {[%clk 0:00:01]}  Kd7 {[%clk 0:00:11]} 50. Kf3 {[%clk 0:00:01]}  Ke6 {[%clk 0:00:11]} 51. Kf4 {[%clk 0:00:01]}  h4 {[%clk 0:00:06]} 52. Kg4 {[%clk 0:00:02]}  h3 {[%clk 0:00:07]} 53. Kxh3 {[%clk 0:00:02]}  Kf5 {[%clk 0:00:08]} 54. Kh4 {[%clk 0:00:02]}  Kf4 {[%clk 0:00:08]} 55. Kh3 {[%clk 0:00:01]}  Kf3 {[%clk 0:00:06]} 56. Kh4 {[%clk 0:00:01]}  Kf4 {[%clk 0:00:05]} 57. Kh3 {[%clk 0:00:02]}  Ke4 {[%clk 0:00:04]} 58. Kg4 {[%clk 0:00:02]}  Kxd4 {[%clk 0:00:04]} 59. f4 {[%clk 0:00:03]}  Ke4 {[%clk 0:00:02]} 60. f5 {[%clk 0:00:04]}  d4 {[%clk 0:00:02]} 61. fxg6 {[%clk 0:00:04]}  d3 {[%clk 0:00:03]} 62. g7 {[%clk 0:00:05]}  d2 {[%clk 0:00:04]} 63. g8=Q {[%clk 0:00:05]}  d1=Q+ {[%clk 0:00:05]} 64. Kh4 {[%clk 0:00:06]}  Qh1+ {[%clk 0:00:05]} 65. Kg3 {[%clk 0:00:06]}  Qf3+ {[%clk 0:00:05]} 66. Kh4 {[%clk 0:00:06]}  Qh1+ {[%clk 0:00:05]} 67. Kg3 {[%clk 0:00:06]}  Qf3+ {[%clk 0:00:05]} 68. Kh4 {[%clk 0:00:06]}  Qh1+ {[%clk 0:00:06]} 1/2-1/2


[Site "https://www.chess.com"]

[Event "Titled Tuesday Blitz November 14 Early 2023"]
[White "Khismatullin, Denis"]
[Black "Beerdsen, Thomas"]
[WhiteFideId "4142578"]
[BlackFideId "1030108"]
[WhiteElo "2961"]
[BlackElo "2861"]
[Result "0-1"]
[Round "10"]
[TimeControl "180+1"]
[Date "2023.11.14"]
[WhiteClock "0:00:00"]
[BlackClock "0:00:31"]
[Board "12"]

1. c4 {[%clk 0:03:00]}  Nf6 {[%clk 0:02:58]} 2. Nc3 {[%clk 0:03:00]}  a6 {[%clk 0:02:54]} 3. Nf3 {[%clk 0:02:57]}  b5 {[%clk 0:02:51]} 4. cxb5 {[%clk 0:02:55]}  axb5 {[%clk 0:02:52]} 5. Nxb5 {[%clk 0:02:55]}  c5 {[%clk 0:02:52]} 6. e3 {[%clk 0:02:52]}  Nc6 {[%clk 0:02:52]} 7. d4 {[%clk 0:02:50]}  cxd4 {[%clk 0:02:50]} 8. exd4 {[%clk 0:02:47]}  Ba6 {[%clk 0:02:41]} 9. a4 {[%clk 0:02:41]}  e6 {[%clk 0:02:22]} 10. Bd2 {[%clk 0:02:41]}  Ne4 {[%clk 0:02:20]} 11. d5 {[%clk 0:02:27]}  Nxd2 {[%clk 0:02:17]} 12. Nxd2 {[%clk 0:02:14]}  exd5 {[%clk 0:02:09]} 13. Be2 {[%clk 0:02:13]}  Bb4 {[%clk 0:02:01]} 14. O-O {[%clk 0:02:13]}  O-O {[%clk 0:02:02]} 15. Nb3 {[%clk 0:02:10]}  Qf6 {[%clk 0:02:01]} 16. Bf3 {[%clk 0:01:47]}  Qxb2 {[%clk 0:01:54]} 17. Bxd5 {[%clk 0:01:47]}  Rab8 {[%clk 0:01:44]} 18. Rb1 {[%clk 0:01:35]}  Qf6 {[%clk 0:01:44]} 19. Bc4 {[%clk 0:01:19]}  Rfd8 {[%clk 0:01:43]} 20. Bd3 {[%clk 0:00:59]}  d5 {[%clk 0:01:40]} 21. N3d4 {[%clk 0:00:56]}  Nxd4 {[%clk 0:01:30]} 22. Rxb4 {[%clk 0:00:55]}  Ne6 {[%clk 0:01:23]} 23. Re1 {[%clk 0:00:43]}  g6 {[%clk 0:01:23]} 24. Bf1 {[%clk 0:00:32]}  Rbc8 {[%clk 0:01:19]} 25. Rb3 {[%clk 0:00:31]}  Ng5 {[%clk 0:01:08]} 26. Qd4 {[%clk 0:00:24]}  Qxd4 {[%clk 0:01:02]} 27. Nxd4 {[%clk 0:00:23]}  Bxf1 {[%clk 0:01:03]} 28. Kxf1 {[%clk 0:00:22]}  Rc4 {[%clk 0:01:04]} 29. Rd3 {[%clk 0:00:17]}  Rxa4 {[%clk 0:01:00]} 30. Nc6 {[%clk 0:00:13]}  Rd6 {[%clk 0:01:01]} 31. Ne7+ {[%clk 0:00:12]}  Kg7 {[%clk 0:01:00]} 32. Nxd5 {[%clk 0:00:12]}  Ne4 {[%clk 0:00:58]} 33. f3 {[%clk 0:00:06]}  Nc5 {[%clk 0:00:57]} 34. Rdd1 {[%clk 0:00:06]}  Ra2 {[%clk 0:00:56]} 35. Nc3 {[%clk 0:00:06]}  Rxd1 {[%clk 0:00:55]} 36. Rxd1 {[%clk 0:00:06]}  Rc2 {[%clk 0:00:55]} 37. Ne2 {[%clk 0:00:06]}  Nb3 {[%clk 0:00:55]} 38. Kf2 {[%clk 0:00:06]}  Rb2 {[%clk 0:00:54]} 39. Ke3 {[%clk 0:00:05]}  Na5 {[%clk 0:00:54]} 40. Kf2 {[%clk 0:00:05]}  Nc4 {[%clk 0:00:54]} 41. g4 {[%clk 0:00:03]}  Ne5 {[%clk 0:00:53]} 42. Ke3 {[%clk 0:00:03]}  Rb3+ {[%clk 0:00:51]} 43. Kf4 {[%clk 0:00:03]}  Nxf3 {[%clk 0:00:47]} 44. Nd4 {[%clk 0:00:03]}  g5+ {[%clk 0:00:30]} 45. Ke4 {[%clk 0:00:02]}  Nxd4 {[%clk 0:00:30]} 46. Rxd4 {[%clk 0:00:03]}  Rb2 {[%clk 0:00:31]} 47. h3 {[%clk 0:00:02]}  Rb3 {[%clk 0:00:32]} 48. Kf5 {[%clk 0:00:01]}  h6 {[%clk 0:00:32]} 49. h4 {[%clk 0:00:01]}  Rf3+ {[%clk 0:00:32]} 50. Ke5 {[%clk 0:00:00]}  gxh4 {[%clk 0:00:31]} 0-1


[Site "https://www.chess.com"]

[Event "Titled Tuesday Blitz November 14 Early 2023"]
[White "Rakhmanov, Aleksandr"]
[Black "Sydoryka, Vladyslav"]
[WhiteFideId "4173708"]
[BlackFideId "14145928"]
[WhiteElo "2864"]
[BlackElo "2678"]
[Result "1-0"]
[Round "10"]
[TimeControl "180+1"]
[Date "2023.11.14"]
[WhiteClock "0:00:59"]
[BlackClock "0:00:00"]
[Board "14"]

1. c4 {[%clk 0:03:00]}  c5 {[%clk 0:02:59]} 2. Nc3 {[%clk 0:03:00]}  Nc6 {[%clk 0:02:59]} 3. g3 {[%clk 0:03:00]}  g6 {[%clk 0:03:00]} 4. Bg2 {[%clk 0:03:01]}  Bg7 {[%clk 0:03:01]} 5. b3 {[%clk 0:03:01]}  d6 {[%clk 0:03:00]} 6. Bb2 {[%clk 0:03:01]}  Nf6 {[%clk 0:02:59]} 7. e3 {[%clk 0:03:02]}  O-O {[%clk 0:02:59]} 8. Nge2 {[%clk 0:03:02]}  a6 {[%clk 0:02:58]} 9. O-O {[%clk 0:03:03]}  Rb8 {[%clk 0:02:58]} 10. d3 {[%clk 0:03:03]}  Bd7 {[%clk 0:02:57]} 11. Qd2 {[%clk 0:03:04]}  b5 {[%clk 0:02:57]} 12. Rad1 {[%clk 0:03:05]}  Qc8 {[%clk 0:02:55]} 13. Nd5 {[%clk 0:03:04]}  Nxd5 {[%clk 0:01:42]} 14. cxd5 {[%clk 0:03:05]}  Ne5 {[%clk 0:01:42]} 15. f4 {[%clk 0:03:04]}  Ng4 {[%clk 0:01:42]} 16. Bxg7 {[%clk 0:03:03]}  Kxg7 {[%clk 0:01:43]} 17. h3 {[%clk 0:03:02]}  Nf6 {[%clk 0:01:41]} 18. g4 {[%clk 0:03:02]}  Kg8 {[%clk 0:01:07]} 19. Ng3 {[%clk 0:02:54]}  e6 {[%clk 0:00:57]} 20. dxe6 {[%clk 0:02:48]}  fxe6 {[%clk 0:00:55]} 21. g5 {[%clk 0:02:44]}  Ne8 {[%clk 0:00:55]} 22. h4 {[%clk 0:02:43]}  Bc6 {[%clk 0:00:55]} 23. h5 {[%clk 0:02:39]}  Bxg2 {[%clk 0:00:45]} 24. Qxg2 {[%clk 0:02:39]}  Qb7 {[%clk 0:00:46]} 25. Qh3 {[%clk 0:02:36]}  Ng7 {[%clk 0:00:39]} 26. Rd2 {[%clk 0:02:17]}  gxh5 {[%clk 0:00:28]} 27. Rh2 {[%clk 0:02:05]}  Qe7 {[%clk 0:00:20]} 28. Nxh5 {[%clk 0:02:01]}  Nxh5 {[%clk 0:00:21]} 29. Qxh5 {[%clk 0:02:02]}  Rf7 {[%clk 0:00:17]} 30. Kh1 {[%clk 0:01:56]}  Rbf8 {[%clk 0:00:17]} 31. g6 {[%clk 0:01:56]}  Rg7 {[%clk 0:00:13]} 32. Rg1 {[%clk 0:01:48]}  Kh8 {[%clk 0:00:08]} 33. Rg3 {[%clk 0:01:28]}  Rf6 {[%clk 0:00:07]} 34. Qh4 {[%clk 0:01:10]}  Qf8 {[%clk 0:00:01]} 35. Rhg2 {[%clk 0:01:02]}  Rf5 {[%clk 0:00:01]} 36. gxh7 {[%clk 0:01:01]}  Rxg3 {[%clk 0:00:00]} 37. Rxg3 {[%clk 0:00:59]} 1-0


[Site "https://www.chess.com"]

[Event "Titled Tuesday Blitz November 14 Early 2023"]
[White "Idani, Pouya"]
[Black "Pranav, V"]
[WhiteFideId "12510130"]
[BlackFideId "25060783"]
[WhiteElo "2838"]
[BlackElo "3080"]
[Result "1/2-1/2"]
[Round "10"]
[TimeControl "180+1"]
[Date "2023.11.14"]
[WhiteClock "0:00:06"]
[BlackClock "0:00:03"]
[Board "15"]

1. e4 {[%clk 0:03:00]}  e5 {[%clk 0:03:00]} 2. Nf3 {[%clk 0:02:59]}  Nc6 {[%clk 0:03:01]} 3. Bc4 {[%clk 0:02:59]}  Nf6 {[%clk 0:03:00]} 4. d3 {[%clk 0:02:58]}  h6 {[%clk 0:03:00]} 5. Nc3 {[%clk 0:02:57]}  d6 {[%clk 0:03:00]} 6. a4 {[%clk 0:02:57]}  g5 {[%clk 0:02:58]} 7. a5 {[%clk 0:02:56]}  a6 {[%clk 0:02:58]} 8. h3 {[%clk 0:02:53]}  Bg7 {[%clk 0:02:58]} 9. Nh2 {[%clk 0:02:51]}  Ne7 {[%clk 0:02:49]} 10. Ng4 {[%clk 0:02:48]}  c6 {[%clk 0:02:49]} 11. Be3 {[%clk 0:02:32]}  d5 {[%clk 0:02:41]} 12. Bb6 {[%clk 0:02:32]}  Qd6 {[%clk 0:02:40]} 13. Bb3 {[%clk 0:02:29]}  Be6 {[%clk 0:02:35]} 14. Nxf6+ {[%clk 0:01:56]}  Bxf6 {[%clk 0:02:33]} 15. Na4 {[%clk 0:01:51]}  Ng6 {[%clk 0:02:14]} 16. Nc5 {[%clk 0:01:45]}  Qe7 {[%clk 0:01:53]} 17. Nxe6 {[%clk 0:01:34]}  fxe6 {[%clk 0:01:52]} 18. Qh5 {[%clk 0:01:28]}  Kf7 {[%clk 0:01:52]} 19. O-O-O {[%clk 0:01:26]}  Kg7 {[%clk 0:01:50]} 20. g3 {[%clk 0:01:24]}  Qf7 {[%clk 0:01:48]} 21. Kb1 {[%clk 0:01:21]}  Bd8 {[%clk 0:01:47]} 22. Be3 {[%clk 0:01:04]}  Bxa5 {[%clk 0:01:18]} 23. h4 {[%clk 0:01:04]}  Bd8 {[%clk 0:00:51]} 24. hxg5 {[%clk 0:01:02]}  Bxg5 {[%clk 0:00:51]} 25. f4 {[%clk 0:00:55]}  exf4 {[%clk 0:00:38]} 26. gxf4 {[%clk 0:00:56]}  Nxf4 {[%clk 0:00:39]} 27. Bd4+ {[%clk 0:00:47]}  Kf8 {[%clk 0:00:31]} 28. Qf3 {[%clk 0:00:39]}  Ke7 {[%clk 0:00:25]} 29. exd5 {[%clk 0:00:38]}  Nxd5 {[%clk 0:00:23]} 30. Qe4 {[%clk 0:00:34]}  Kd7 {[%clk 0:00:21]} 31. Bxh8 {[%clk 0:00:33]}  Rxh8 {[%clk 0:00:22]} 32. Qd4 {[%clk 0:00:33]}  Rf8 {[%clk 0:00:19]} 33. Qa7 {[%clk 0:00:31]}  Kc7 {[%clk 0:00:18]} 34. Bxd5 {[%clk 0:00:28]}  exd5 {[%clk 0:00:18]} 35. Qd4 {[%clk 0:00:28]}  Qf4 {[%clk 0:00:15]} 36. Qxf4+ {[%clk 0:00:28]}  Rxf4 {[%clk 0:00:16]} 37. Rdf1 {[%clk 0:00:28]}  Rg4 {[%clk 0:00:09]} 38. Rf7+ {[%clk 0:00:27]}  Kb6 {[%clk 0:00:09]} 39. Rg7 {[%clk 0:00:27]}  Rf4 {[%clk 0:00:08]} 40. Re1 {[%clk 0:00:27]}  a5 {[%clk 0:00:07]} 41. Re6 {[%clk 0:00:26]}  Ka6 {[%clk 0:00:05]} 42. Rd6 {[%clk 0:00:25]}  Rb4 {[%clk 0:00:06]} 43. c3 {[%clk 0:00:20]}  Rb6 {[%clk 0:00:04]} 44. Kc2 {[%clk 0:00:20]}  Ka7 {[%clk 0:00:03]} 45. Rdd7 {[%clk 0:00:20]}  a4 {[%clk 0:00:03]} 46. Rg8 {[%clk 0:00:20]}  Ka6 {[%clk 0:00:02]} 47. Ra8+ {[%clk 0:00:19]}  Kb5 {[%clk 0:00:03]} 48. Rf7 {[%clk 0:00:17]}  Bh4 {[%clk 0:00:01]} 49. Rf5 {[%clk 0:00:17]}  Bg5 {[%clk 0:00:01]} 50. c4+ {[%clk 0:00:17]}  Kc5 {[%clk 0:00:02]} 51. Rxa4 {[%clk 0:00:17]}  Kd6 {[%clk 0:00:02]} 52. cxd5 {[%clk 0:00:15]}  cxd5 {[%clk 0:00:02]} 53. Rd4 {[%clk 0:00:15]}  Rc6+ {[%clk 0:00:02]} 54. Kb1 {[%clk 0:00:15]}  Rc5 {[%clk 0:00:03]} 55. Rb4 {[%clk 0:00:15]}  Kc6 {[%clk 0:00:02]} 56. Rf7 {[%clk 0:00:15]}  b6 {[%clk 0:00:02]} 57. Rg7 {[%clk 0:00:14]}  Rb5 {[%clk 0:00:03]} 58. Rg6+ {[%clk 0:00:13]}  Kc5 {[%clk 0:00:03]} 59. Rxb5+ {[%clk 0:00:14]}  Kxb5 {[%clk 0:00:04]} 60. Kc2 {[%clk 0:00:15]}  Kc5 {[%clk 0:00:04]} 61. Kc3 {[%clk 0:00:15]}  d4+ {[%clk 0:00:03]} 62. Kb3 {[%clk 0:00:15]}  b5 {[%clk 0:00:03]} 63. Re6 {[%clk 0:00:15]}  Bf4 {[%clk 0:00:03]} 64. Rf6 {[%clk 0:00:15]}  Be3 {[%clk 0:00:03]} 65. Rf5+ {[%clk 0:00:15]}  Kb6 {[%clk 0:00:03]} 66. Kc2 {[%clk 0:00:15]}  Ka5 {[%clk 0:00:04]} 67. Rd5 {[%clk 0:00:14]}  Kb4 {[%clk 0:00:04]} 68. Rh5 {[%clk 0:00:14]}  Ka4 {[%clk 0:00:04]} 69. Rd5 {[%clk 0:00:14]}  Kb4 {[%clk 0:00:04]} 70. Kb1 {[%clk 0:00:14]}  Ka4 {[%clk 0:00:02]} 71. Ka2 {[%clk 0:00:14]}  Kb4 {[%clk 0:00:03]} 72. Rd6 {[%clk 0:00:14]}  Ka4 {[%clk 0:00:02]} 73. Rd5 {[%clk 0:00:13]}  Kb4 {[%clk 0:00:03]} 74. Re5 {[%clk 0:00:12]}  Bf2 {[%clk 0:00:03]} 75. Kb1 {[%clk 0:00:11]}  Be3 {[%clk 0:00:03]} 76. Kc2 {[%clk 0:00:11]}  Ka4 {[%clk 0:00:03]} 77. Rh5 {[%clk 0:00:07]}  Kb4 {[%clk 0:00:03]} 78. b3 {[%clk 0:00:08]}  Bg5 {[%clk 0:00:04]} 79. Rh3 {[%clk 0:00:08]}  Be3 {[%clk 0:00:04]} 80. Rh4 {[%clk 0:00:08]}  Ka3 {[%clk 0:00:02]} 81. Re4 {[%clk 0:00:07]}  Kb4 {[%clk 0:00:02]} 82. Re5 {[%clk 0:00:08]}  Bg5 {[%clk 0:00:03]} 83. Rd5 {[%clk 0:00:07]}  Be3 {[%clk 0:00:04]} 84. Rd6 {[%clk 0:00:08]}  Kc5 {[%clk 0:00:03]} 85. Rg6 {[%clk 0:00:07]}  Kb4 {[%clk 0:00:04]} 86. Ra6 {[%clk 0:00:08]}  Bg5 {[%clk 0:00:04]} 87. Kb2 {[%clk 0:00:08]}  Be3 {[%clk 0:00:04]} 88. Rd6 {[%clk 0:00:08]}  h5 {[%clk 0:00:03]} 89. Rd5 {[%clk 0:00:07]}  h4 {[%clk 0:00:04]} 90. Rh5 {[%clk 0:00:08]}  Bf2 {[%clk 0:00:04]} 91. Kc2 {[%clk 0:00:07]}  Bg3 {[%clk 0:00:03]} 92. Rd5 {[%clk 0:00:07]}  Bf2 {[%clk 0:00:03]} 93. Rf5 {[%clk 0:00:07]}  Be3 {[%clk 0:00:03]} 94. Rh5 {[%clk 0:00:07]}  Bf2 {[%clk 0:00:03]} 95. Kb2 {[%clk 0:00:07]}  Bg3 {[%clk 0:00:03]} 96. Rh6 {[%clk 0:00:07]}  Be1 {[%clk 0:00:03]} 97. Rh7 {[%clk 0:00:06]}  Bg3 {[%clk 0:00:03]} 98. Rg7 {[%clk 0:00:06]}  Bf2 {[%clk 0:00:03]} 99. Rf7 {[%clk 0:00:06]}  Be1 {[%clk 0:00:03]} 100. Rf4 {[%clk 0:00:07]}  Kc5 {[%clk 0:00:01]} 101. Kc2 {[%clk 0:00:06]}  Bg3 {[%clk 0:00:01]} 102. Rf5+ {[%clk 0:00:07]}  Kb4 {[%clk 0:00:02]} 103. Rd5 {[%clk 0:00:07]}  Bf2 {[%clk 0:00:02]} 104. Rf5 {[%clk 0:00:07]}  Be3 {[%clk 0:00:02]} 105. Rh5 {[%clk 0:00:06]}  Bf2 {[%clk 0:00:03]} 106. Rh7 {[%clk 0:00:07]}  Kc5 {[%clk 0:00:03]} 107. Rh5+ {[%clk 0:00:06]}  Kb4 {[%clk 0:00:03]} 1/2-1/2


[Site "https://www.chess.com"]

[Event "Titled Tuesday Blitz November 14 Early 2023"]
[White "Baskakov, Egor"]
[Black "Samsonkin, Artiom"]
[WhiteFideId "24197866"]
[BlackFideId "13503111"]
[WhiteElo "2915"]
[BlackElo "2826"]
[Result "0-1"]
[Round "10"]
[TimeControl "180+1"]
[Date "2023.11.14"]
[WhiteClock "0:00:03"]
[BlackClock "0:00:19"]
[Board "16"]

1. e4 {[%clk 0:03:00]}  c5 {[%clk 0:02:53]} 2. Nf3 {[%clk 0:03:00]}  d6 {[%clk 0:02:53]} 3. d4 {[%clk 0:03:00]}  cxd4 {[%clk 0:02:54]} 4. Nxd4 {[%clk 0:03:01]}  Nf6 {[%clk 0:02:55]} 5. Nc3 {[%clk 0:03:01]}  a6 {[%clk 0:02:56]} 6. a4 {[%clk 0:03:01]}  g6 {[%clk 0:02:55]} 7. g3 {[%clk 0:03:01]}  Bg7 {[%clk 0:02:55]} 8. Bg2 {[%clk 0:03:01]}  Nc6 {[%clk 0:02:51]} 9. Nde2 {[%clk 0:03:00]}  O-O {[%clk 0:02:47]} 10. h3 {[%clk 0:02:50]}  Rb8 {[%clk 0:02:44]} 11. O-O {[%clk 0:02:49]}  b5 {[%clk 0:02:44]} 12. axb5 {[%clk 0:02:50]}  axb5 {[%clk 0:02:45]} 13. Be3 {[%clk 0:02:51]}  Nd7 {[%clk 0:02:20]} 14. Nd4 {[%clk 0:02:49]}  Nxd4 {[%clk 0:02:12]} 15. Bxd4 {[%clk 0:02:50]}  Ne5 {[%clk 0:02:03]} 16. Nd5 {[%clk 0:02:36]}  e6 {[%clk 0:01:59]} 17. Nb4 {[%clk 0:02:33]}  Bb7 {[%clk 0:01:52]} 18. Ra7 {[%clk 0:02:26]}  Qc8 {[%clk 0:01:27]} 19. b3 {[%clk 0:02:02]}  Ra8 {[%clk 0:01:18]} 20. Ra1 {[%clk 0:01:14]}  Qc7 {[%clk 0:01:12]} 21. Qd2 {[%clk 0:01:07]}  Rxa1 {[%clk 0:01:03]} 22. Rxa1 {[%clk 0:01:06]}  Ra8 {[%clk 0:01:03]} 23. Rd1 {[%clk 0:01:02]}  Rd8 {[%clk 0:00:34]} 24. f4 {[%clk 0:00:58]}  Nc6 {[%clk 0:00:32]} 25. Nxc6 {[%clk 0:00:58]}  Qxc6 {[%clk 0:00:25]} 26. Bxg7 {[%clk 0:00:58]}  Kxg7 {[%clk 0:00:26]} 27. Qd4+ {[%clk 0:00:58]}  Kg8 {[%clk 0:00:25]} 28. Rd2 {[%clk 0:00:58]}  Rc8 {[%clk 0:00:22]} 29. Qxd6 {[%clk 0:00:47]}  Qxd6 {[%clk 0:00:22]} 30. Rxd6 {[%clk 0:00:48]}  Rxc2 {[%clk 0:00:23]} 31. Rd8+ {[%clk 0:00:42]}  Kg7 {[%clk 0:00:23]} 32. Rd7 {[%clk 0:00:26]}  Bc6 {[%clk 0:00:23]} 33. Rd4 {[%clk 0:00:23]}  f5 {[%clk 0:00:20]} 34. g4 {[%clk 0:00:16]}  Re2 {[%clk 0:00:17]} 35. Bf3 {[%clk 0:00:12]}  Re3 {[%clk 0:00:15]} 36. Kf2 {[%clk 0:00:12]}  Rxb3 {[%clk 0:00:15]} 37. Rd6 {[%clk 0:00:09]}  Bxe4 {[%clk 0:00:15]} 38. Bxe4 {[%clk 0:00:09]}  fxe4 {[%clk 0:00:15]} 39. Rxe6 {[%clk 0:00:10]}  Rf3+ {[%clk 0:00:15]} 40. Kg2 {[%clk 0:00:10]}  Rxf4 {[%clk 0:00:15]} 41. Rb6 {[%clk 0:00:10]}  e3 {[%clk 0:00:14]} 42. Rxb5 {[%clk 0:00:07]}  Re4 {[%clk 0:00:15]} 43. Kf1 {[%clk 0:00:07]}  Kf6 {[%clk 0:00:13]} 44. Ke2 {[%clk 0:00:07]}  Re7 {[%clk 0:00:11]} 45. g5+ {[%clk 0:00:06]}  Kg7 {[%clk 0:00:10]} 46. Rc5 {[%clk 0:00:07]}  Kf7 {[%clk 0:00:10]} 47. Rd5 {[%clk 0:00:07]}  Ke6 {[%clk 0:00:10]} 48. Rb5 {[%clk 0:00:06]}  Rc7 {[%clk 0:00:08]} 49. Kxe3 {[%clk 0:00:05]}  Rc3+ {[%clk 0:00:09]} 50. Kf4 {[%clk 0:00:05]}  Rxh3 {[%clk 0:00:10]} 51. Kg4 {[%clk 0:00:05]}  Rh1 {[%clk 0:00:10]} 52. Ra5 {[%clk 0:00:05]}  Rg1+ {[%clk 0:00:10]} 53. Kf4 {[%clk 0:00:06]}  Rf1+ {[%clk 0:00:10]} 54. Kg4 {[%clk 0:00:07]}  Rf5 {[%clk 0:00:10]} 55. Ra7 {[%clk 0:00:07]}  Rf7 {[%clk 0:00:09]} 56. Ra5 {[%clk 0:00:07]}  Ke7 {[%clk 0:00:09]} 57. Rb5 {[%clk 0:00:07]}  Kf8 {[%clk 0:00:10]} 58. Rc5 {[%clk 0:00:08]}  Kg7 {[%clk 0:00:11]} 59. Rd5 {[%clk 0:00:08]}  Re7 {[%clk 0:00:11]} 60. Rc5 {[%clk 0:00:09]}  Rd7 {[%clk 0:00:12]} 61. Re5 {[%clk 0:00:09]}  Rd4+ {[%clk 0:00:12]} 62. Kg3 {[%clk 0:00:09]}  Kf7 {[%clk 0:00:13]} 63. Kf3 {[%clk 0:00:07]}  Rc4 {[%clk 0:00:12]} 64. Kg3 {[%clk 0:00:08]}  Rc7 {[%clk 0:00:12]} 65. Kg4 {[%clk 0:00:07]}  Re7 {[%clk 0:00:12]} 66. Rc5 {[%clk 0:00:07]}  Re4+ {[%clk 0:00:13]} 67. Kg3 {[%clk 0:00:07]}  Ke6 {[%clk 0:00:13]} 68. Ra5 {[%clk 0:00:07]}  Re5 {[%clk 0:00:13]} 69. Ra7 {[%clk 0:00:03]}  Rxg5+ {[%clk 0:00:13]} 70. Kf4 {[%clk 0:00:03]}  Rf5+ {[%clk 0:00:13]} 71. Kg4 {[%clk 0:00:03]}  h5+ {[%clk 0:00:13]} 72. Kh4 {[%clk 0:00:04]}  Kf6 {[%clk 0:00:14]} 73. Ra6+ {[%clk 0:00:04]}  Kg7 {[%clk 0:00:15]} 74. Ra7+ {[%clk 0:00:05]}  Kh6 {[%clk 0:00:15]} 75. Ra8 {[%clk 0:00:06]}  Rf4+ {[%clk 0:00:16]} 76. Kg3 {[%clk 0:00:07]}  Kg5 {[%clk 0:00:17]} 77. Kh3 {[%clk 0:00:07]}  Rf5 {[%clk 0:00:17]} 78. Ra3 {[%clk 0:00:07]}  Rd5 {[%clk 0:00:18]} 79. Rg3+ {[%clk 0:00:08]}  Kh6 {[%clk 0:00:18]} 80. Re3 {[%clk 0:00:08]}  Rd6 {[%clk 0:00:19]} 81. Kh2 {[%clk 0:00:09]}  g5 {[%clk 0:00:19]} 82. Re8 {[%clk 0:00:09]}  g4 {[%clk 0:00:19]} 83. Rg8 {[%clk 0:00:09]}  Rg6 {[%clk 0:00:19]} 84. Rc8 {[%clk 0:00:09]}  Kg5 {[%clk 0:00:19]} 85. Rc5+ {[%clk 0:00:09]}  Kh4 {[%clk 0:00:20]} 86. Rc3 {[%clk 0:00:09]}  Rf6 {[%clk 0:00:20]} 87. Rc2 {[%clk 0:00:09]}  Kg5 {[%clk 0:00:19]} 88. Rc5+ {[%clk 0:00:08]}  Rf5 {[%clk 0:00:20]} 89. Rc2 {[%clk 0:00:08]}  h4 {[%clk 0:00:20]} 90. Kg2 {[%clk 0:00:08]}  h3+ {[%clk 0:00:20]} 91. Kg3 {[%clk 0:00:08]}  Rf3+ {[%clk 0:00:20]} 92. Kh2 {[%clk 0:00:08]}  Kh4 {[%clk 0:00:21]} 93. Rc1 {[%clk 0:00:09]}  Rf2+ {[%clk 0:00:21]} 94. Kh1 {[%clk 0:00:10]}  Re2 {[%clk 0:00:20]} 95. Rd1 {[%clk 0:00:10]}  Re4 {[%clk 0:00:18]} 96. Rf1 {[%clk 0:00:10]}  g3 {[%clk 0:00:18]} 97. Rc1 {[%clk 0:00:10]}  Kg4 {[%clk 0:00:18]} 98. Kg1 {[%clk 0:00:10]}  Kf3 {[%clk 0:00:18]} 99. Rf1+ {[%clk 0:00:10]}  Kg4 {[%clk 0:00:18]} 100. Rb1 {[%clk 0:00:11]}  Rf4 {[%clk 0:00:19]} 101. Rc1 {[%clk 0:00:11]}  h2+ {[%clk 0:00:19]} 102. Kg2 {[%clk 0:00:04]}  Rf2+ {[%clk 0:00:19]} 103. Kh1 {[%clk 0:00:03]}  Kh3 {[%clk 0:00:19]} 0-1


[Site "https://www.chess.com"]